{"text_format":"1","workbook":"xlsx","n_sheets":2,"sheets":["受診者様情報","案内"],"not_rendered":{"charts":0,"images":7,"macros":1,"external_links":0,"defined_names":10,"comments":0,"pivot_tables":0},"unopened":[],"bounds":{"document_bytes":16777216,"sheet_cells":100000,"rows_first":2000,"rows_last":500,"rows_between":2000,"halvings":0,"cell_chars":16384,"cell_head_chars":4096},"cells_cut":0,"cells_raw":0,"read":"whole","date_system":"1900"}

{"sheet":"受診者様情報","index":0,"n_rows":408,"n_cols":104,"rows_kept":408,"cut":false,"hidden":false,"merged":[[378,3,387,48],[181,3,182,6],[181,7,182,11],[181,12,182,15],[181,16,182,49],[18,51,21,61],[407,34,407,42],[407,43,407,49],[351,1,351,14],[353,1,354,49],[356,3,376,48],[389,9,389,48],[391,3,391,34],[393,3,393,14],[393,34,393,42],[397,2,400,48],[18,1,19,6],[18,7,19,21],[18,28,18,31],[18,32,18,49],[19,22,19,27],[19,28,19,42],[19,43,19,45],[339,3,340,47],[19,46,19,49],[34,3,34,49],[234,1,234,14],[235,1,236,49],[241,4,245,48],[1,1,1,4],[1,5,1,14],[1,33,1,49],[2,1,3,49],[4,1,4,8],[4,9,4,26],[4,28,4,48],[5,1,5,8],[5,9,5,26],[5,28,5,48],[7,1,8,18],[7,19,7,27],[7,28,7,49],[8,25,8,49],[17,7,17,21],[17,22,18,27],[17,28,17,31],[17,32,17,49],[26,3,26,49],[350,1,350,4],[350,5,350,14],[350,40,350,49],[9,1,10,9],[9,10,10,18],[9,25,9,49],[10,25,10,49],[11,1,11,18],[11,25,11,49],[12,10,12,49],[13,1,13,9],[13,10,13,47],[15,1,15,9],[15,10,15,16],[15,17,15,18],[15,19,15,22],[15,23,15,24],[15,26,15,29],[15,37,15,39],[15,30,15,31],[15,33,15,36],[15,40,15,43],[15,44,15,45],[17,1,17,6],[27,3,27,49],[33,3,33,49],[20,1,20,6],[20,7,20,49],[21,1,22,6],[21,7,22,49],[29,1,29,49],[30,3,30,49],[32,1,32,49],[24,1,25,49],[248,4,248,48],[254,4,254,34],[36,2,36,49],[37,2,37,33],[37,34,37,42],[37,43,37,49],[233,1,233,4],[233,5,233,14],[233,40,233,49],[42,3,46,48],[48,14,48,42],[50,14,50,42],[53,5,56,48],[57,5,57,48],[60,4,65,48],[38,1,38,4],[38,5,38,14],[38,40,38,49],[88,2,91,48],[93,9,93,48],[95,3,95,34],[97,3,97,14],[97,34,97,42],[181,1,182,2],[349,34,349,42],[349,43,349,49],[292,1,292,14],[295,4,298,48],[301,4,306,48],[308,4,309,48],[310,4,315,48],[318,4,319,48],[274,4,279,48],[282,4,289,48],[290,34,290,42],[290,43,290,49],[291,1,291,4],[291,5,291,14],[291,40,291,49],[334,4,336,48],[108,1,109,49],[110,3,114,48],[38,53,38,62],[39,1,39,14],[40,1,41,49],[322,4,324,48],[327,4,331,48],[262,5,262,8],[262,9,262,28],[262,29,262,48],[267,4,267,48],[270,4,270,34],[271,4,271,34],[258,9,258,28],[258,29,258,48],[259,5,260,8],[259,9,260,28],[259,29,260,48],[261,5,261,8],[261,9,261,28],[261,29,261,48],[247,4,247,47],[105,34,105,42],[105,43,105,49],[106,1,106,4],[106,5,106,14],[106,40,106,49],[107,1,107,14],[101,2,104,48],[67,18,67,47],[68,4,72,48],[75,4,78,48],[82,9,82,48],[84,3,84,8],[84,9,84,35],[128,4,133,48],[135,18,135,47],[150,9,150,48],[152,3,152,8],[152,9,152,35],[136,4,140,48],[143,4,146,48],[116,14,116,42],[118,14,118,42],[121,5,124,48],[125,5,125,48],[173,34,173,42],[173,43,173,49],[156,2,159,48],[161,9,161,48],[163,3,163,34],[165,3,165,14],[165,34,165,42],[169,2,172,48],[179,22,180,25],[186,2,190,48],[227,2,231,48],[191,2,204,48],[205,2,226,48],[232,34,232,42],[232,43,232,49],[176,10,178,36],[174,1,174,4],[174,5,174,14],[174,40,174,49],[175,1,175,14],[183,9,184,12],[183,13,184,15],[183,16,184,19],[183,20,184,22],[183,23,184,49],[179,44,180,49],[179,12,180,21],[179,1,180,11],[183,1,184,8],[179,40,180,43],[179,35,180,39],[179,31,180,34],[179,26,180,30]]}
[]
[null,"発行年月日",null,null,null,{"$f":"TODAY()","v":"2024-05-24"},null,null,null,null,null,null,null,null,null,null,null,null,null,null,null,null,null,null,null,null,null,null,null,null,null,null,null,"湘南鎌倉総合病院へのFAX用"]
[null,"アミロイドPET-CT紹介検査依頼書兼診療情報提供書"]
[]
[null,"検査予約➡",null,null,null,null,null,null,null,"0467-46-9921",null,null,null,null,null,null,null,null,null,null,null,null,null,null,null,null,null,null,"お申し込みは検査前営業日15時まで"]
[null,"FAX➡",null,null,null,null,null,null,null,"0467-46-9912",null,null,null,null,null,null,null,null,null,null,null,null,null,null,null,null,null,null,"にお願いいたします。"]
[]
[null,"湘南鎌倉総合病院病院",null,null,null,null,null,null,null,null,null,null,null,null,null,null,null,null,null,"紹介元医療機関"]
[null,null,null,null,null,null,null,null,null,null,null,null,null,null,null,null,null,null,null,null,"所在地"]
[null,"診療科",null,null,null,null,null,null,null,null,"放射線科",null,null,null,null,null,null,null,null,null,"電話番号"]
[null,null,null,null,null,null,null,null,null,null,null,null,null,null,null,null,null,null,null,null,"診療科"]
[null,"寺田　茂彦　先生",null,null,null,null,null,null,null,null,null,null,null,null,null,null,null,null,null,null,"医師名"]
[null,null,null,null,null,null,null,null,null,null,{"$f":"IF(K14=\"\",\"↓依頼内容を選択してください。↓\",)","v":0}]
[null,"依頼内容",null,null,null,null,null,null,null,null,"アミロイドPET-CT"]
[]
[null,"検査日時",null,null,null,null,null,null,null,null,null,null,null,null,null,null,null,"年",null,null,null,null,null,"月",null,null,null,null,null,null,"日",null,null,null,null,null,null,"時",null,null,null,null,null,null,"分"]
[]
[null,"フリガナ",null,null,null,null,null,null,null,null,null,null,null,null,null,null,null,null,null,null,null,null,"電話番号",null,null,null,null,null,"自宅"]
[null,"受診者氏名",null,null,null,null,null,null,null,null,null,null,null,null,null,null,null,null,null,null,null,null,null,null,null,null,null,null,"携帯"]
[null,null,null,null,null,null,null,null,null,null,null,null,null,null,null,null,null,null,null,null,null,null,"生年月日",null,null,null,null,null,null,null,null,null,null,null,null,null,null,null,null,null,null,null,null,"性別"]
[null,"住所"]
[null,"臨床経過"]
[]
[]
[null," 1.保険診療で行う場合 、下記の次項が該当しているか確認し☑をお願い致します。"]
[null,null,null,null,null,null,null,null,null,null,null,null,null,null,null,null,null,null,null,null,null,null,null,null,null,null,null,null,null,null,null,null,null,null,null,null,null,null,null,null,null,null,null,null,null,null,null,null,null,null,null,null,null,null,null,null,null,null,null,null,null,null,null,null,null,null,null,null,null,null,null,null,null,null,null,null,null,null,null,null,null,null,null,null,null,null,null,null,null,null,null,null,null,null,null,null,null,null,null,null,null,null,null,false]
[null,"①",null,"貴院はレカネマブ（遺伝子組換え）製剤の最適使用推進ガイドラインの投与施設である。\n",null,null,null,null,null,null,null,null,null,null,null,null,null,null,null,null,null,null,null,null,null,null,null,null,null,null,null,null,null,null,null,null,null,null,null,null,null,null,null,null,null,null,null,null,null,null,null,null,null,null,null,null,null,null,null,null,null,null,null,null,null,null,null,null,null,null,null,null,null,null,null,null,null,null,null,null,null,null,null,null,null,null,null,null,null,null,null,null,null,null,null,null,null,null,null,null,null,null,null,false]
[null,"②",null,"受診者がレカネマブ（遺伝子組換え）製剤の最適使用推進ガイドライン投与対象となる患者要件の①~④を満たし、レカネマブ投与要否のための検査依頼である。",null,null,null,null,null,null,null,null,null,null,null,null,null,null,null,null,null,null,null,null,null,null,null,null,null,null,null,null,null,null,null,null,null,null,null,null,null,null,null,null,null,null,null,null,null,null,null,null,null,null,null,null,null,null,null,null,null,null,null,null,null,null,null,null,null,null,null,null,null,null,null,null,null,null,null,null,null,null,null,null,null,null,null,null,null,null,null,null,null,null,null,null,null,null,null,null,null,null,null,false]
[]
[null,"2.①と②の要件を満たせず、自費診療で検査をご希望の場合は自費検査希望にチェックボックスに☑をお願い致します。",null,null,null,null,null,null,null,null,null,null,null,null,null,null,null,null,null,null,null,null,null,null,null,null,null,null,null,null,null,null,null,null,null,null,null,null,null,null,null,null,null,null,null,null,null,null,null,null,null,null,null,null,null,null,null,null,null,null,null,null,null,null,null,null,null,null,null,null,null,null,null,null,null,null,null,null,null,null,null,null,null,null,null,null,null,null,null,null,null,null,null,null,null,null,null,null,null,null,null,null,null,false]
[null,"③",null,"自費検査希望(検査費用24万8600円税込)\n",null,null,null,null,null,null,null,null,null,null,null,null,null,null,null,null,null,null,null,null,null,null,null,null,null,null,null,null,null,null,null,null,null,null,null,null,null,null,null,null,null,null,null,null,null,null,null,null,null,null,null,null,null,null,null,null,null,null,null,null,null,null,null,null,null,null,null,null,null,null,null,null,null,null,null,null,null,null,null,null,null,null,null,null,null,null,null,null,null,null,null,null,null,null,null,null,null,null,null,false]
[]
[null,"3.下記に該当しない場合は検査をお受けできません。",null,null,null,null,null,null,null,null,null,null,null,null,null,null,null,null,null,null,null,null,null,null,null,null,null,null,null,null,null,null,null,null,null,null,null,null,null,null,null,null,null,null,null,null,null,null,null,null,null,null,null,null,null,null,null,null,null,null,null,null,null,null,null,null,null,null,null,null,null,null,null,null,null,null,null,null,null,null,null,null,null,null,null,null,null,null,null,null,null,null,null,null,null,null,null,null,null,null,null,null,null,false]
[null,"④",null,"アミヴィッド静注とその成分に過敏症歴がない。",null,null,null,null,null,null,null,null,null,null,null,null,null,null,null,null,null,null,null,null,null,null,null,null,null,null,null,null,null,null,null,null,null,null,null,null,null,null,null,null,null,null,null,null,null,null,null,null,null,null,null,null,null,null,null,null,null,null,null,null,null,null,null,null,null,null,null,null,null,null,null,null,null,null,null,null,null,null,null,null,null,null,null,null,null,null,null,null,null,null,null,null,null,null,null,null,null,null,null,false]
[null,"⑤",null,"妊娠およびその可能性がない。",null,null,null,null,null,null,null,null,null,null,null,null,null,null,null,null,null,null,null,null,null,null,null,null,null,null,null,null,null,null,null,null,null,null,null,null,null,null,null,null,null,null,null,null,null,null,null,null,null,null,null,null,null,null,null,null,null,null,null,null,null,null,null,null,null,null,null,null,null,null,null,null,null,null,null,null,null,null,null,null,null,null,null,null,null,null,null,null,null,null,null,null,null,null,null,null,null,null,null,false]
[]
[null,null,"診療用放射線安全利用に関するガイドラインにおいて、以下について患者様へご説明し、ご理解を得ることが必要とされています。主治医の先生からご説明をお願いいたします。\n☑ アミロイドPET検査１回当たりの被ばく量は約8mSv(ミリシーベルト)になります。\n☑ 放射線被ばくによる不利益に比べ、検査を行う事により得られる利益が上回る場合に、当該放射線診療を実施します。\n☑ 湘南鎌倉総合病院では、医療被ばく低減のため、関係学会等の策定したガイドライン等を活用して線量を評価し、診療目的や画質等に関しても十分に考慮した上で、最適化を定期的に行っています。",null,null,null,null,null,null,null,null,null,null,null,null,null,null,null,null,null,null,null,null,null,null,null,null,null,null,null,null,null,null,null,null,null,null,null,null,null,null,null,null,null,null,null,null,null,null,null,null,null,null,null,null,null,null,null,null,null,null,null,null,null,null,null,null,null,null,null,null,null,null,null,null,null,null,null,null,null,null,null,null,null,null,null,null,null,null,null,null,null,null,null,null,null,null,null,null,null,null,null,null,{"$f":"IF(AND(OR(AND(CZ27=TRUE,CZ28=TRUE),CZ31=TRUE),AND(CZ34=TRUE,CZ35=TRUE)),\"検査可\",\"検査不可\")","v":"検査不可"}]
[null,null,{"$f":"IF(CZ38>=4,\"検査可\",\"検査不可\")","v":"検査不可"},null,null,null,null,null,null,null,null,null,null,null,null,null,null,null,null,null,null,null,null,null,null,null,null,null,null,null,null,null,null,null,"作成修正年月日",null,null,null,null,null,null,null,null,"2024-05-24",null,null,null,null,null,null,null,null,null,null,null,null,null,null,null,null,null,null,null,null,null,null,null,null,null,null,null,null,null,null,null,null,null,null,null,null,null,null,null,null,null,null,null,null,null,null,null,null,null,null,null,null,null,null,null,null,null,null,null,{"$f":"COUNTIF(CZ27:CZ35,TRUE)","v":0}]
[null,"発行年月日",null,null,null,{"$f":"TODAY()","v":"2024-05-24"},null,null,null,null,null,null,null,null,null,null,null,null,null,null,null,null,null,null,null,null,null,null,null,null,null,null,null,null,null,null,null,null,null,null,"医療機関提出用"]
[null,{"$f":"氏名２ &  \"  さま　控え\"","v":"  さま　控え"}]
[null,"同     意     書"]
[]
[null,null,null,"この同意書は、患者さまに説明された重要な医学的情報を文書として確認するために作成されています。患者さまが、十分な情報が提供されたのちに、提案された手術・手技・検査に同意するか、または留保することができることを目的としています。この同意書は、一旦同意された後でもいつでも撤回することができます。同意を撤回されても不利な扱いを受けたりすることはありません。"]
[]
[]
[]
[]
[]
[null,null,1,"状態または診断名",null,null,null,null,null,null,null,null,null,null,"アミロイドβ蛋白の蓄積によるアルツハイマー病の可能性の検討"]
[]
[null,null,2,"医療行為名",null,null,null,null,null,null,null,null,null,null,"アミロイドPET検査"]
[]
[null,null,3,"提案された手術・手技の危険性と利点："]
[null,null,null,null,"A.","私は、提案された医療行為に利点があっても、医療行為には危険を伴うことを理解しました。これらの危険には、アレルギー反応、出血、血栓、神経損傷、感染症、薬剤の副作用、失明、さらには身体機能障害や生命の危険が含まれています。"]
[]
[]
[]
[null,null,null,null,"B.","私は、提案された医療行為に関する危険性と、それ以外の危険性があることを理解しました。"]
[]
[null,null,4,"合併症、不測の状況、結果："]
[null,null,null,null,"私は医療行為には、予期しないリスクや合併症が発生する可能性があることを承知します。また、私は提案された医療行為の施行中に、不測の状況が起きた場合には、緊急の手術・手技を行う必要が生じる可能性があることを理解し、そのような緊急の場合、私はそのような手術や手技が実行されることを了解します。更に、私は、そのような緊急の手術や手技の結果には、いかなる保証もされていないことを認めます。"]
[]
[]
[]
[]
[]
[]
[null,null,5,"承認：ほかに取りうる方法",null,null,null,null,null,null,null,null,null,null,null,null,null,"（",{"$f":"$E$252","v":"認知機能、形態画像（CTまたはMRI）、脳機能画像、血液、髄液検査等による複合的診断"},null,null,null,null,null,null,null,null,null,null,null,null,null,null,null,null,null,null,null,null,null,null,null,null,null,null,null,null,null,")"]
[null,null,null,null,"提案された医療行為手順の想定される利点と危険、成功の可能性、他に取りうる方法、治療しなかった場合に予想される結果の説明を受けました。私はこの同意書の内容と、説明された内容を理解し、質問する機会を与えられ、納得し、手術・手技・検査を受けることを承認します。"]
[]
[]
[]
[]
[]
[null,null,6,"手術・手技と治療への同意："]
[null,null,null,null,"検査説明書および同意書を読み医師と相談したうえで、以下のことを認め署名します。\n私は自らの意志で上記の医療行為の施行を、担当する病院職員、その他の訓練を受けた職員に許可します。"]
[]
[]
[]
[]
[null,null,"上記の内容について説明いたしました。"]
[]
[null,null,null,"説明した日",null,null,null,null,null,{"$f":"F234","v":"2024-05-24"}]
[]
[null,null,null,"主治医師名　                   　　　　　　         ",null,null,null,null,null,{"$f":"Z12","v":0},null,null,null,null,null,null,null,null,null,null,null,null,null,null,null,null,null,null,null,null,null,null,null,null,null,null,null,"印又はサイン"]
[]
[null,null,null,"院内担当医師名(自署)"]
[]
[null,null,"このたび上記の医療行為を受けるにあたり、主治医師から医療行為の必要性とその方法、起こりうる合併症と危険性について十分な説明を受け理解しましたので、上記の医療行為を受けることを同意します。 なお、実施中に緊急の対応を行う必要が生じた場合には、適宜その対応を受けることについても了承します。"]
[]
[]
[]
[]
[null,null,null,"同意した日",null,null,null,null,null,"　　　　　　　　　　　年　　　　　　　月 　　　　　　　日　　　　　　　時　　　　　　　分"]
[]
[null,null,null,"患者さま氏名　                   　　　　　　         "]
[]
[null,null,null,"保護者または代諾者氏名",null,null,null,null,null,null,null,null,null,null,null,null,null,null,null,null,null,null,null,null,null,null,null,null,null,null,null,null,null,null,"患者さまとの続柄"]
[]
[null,null,null,"住所　                   　　　　　　   　　　　　　　　　　　　　　　　　　"]
[]
[null,null,"患者さま氏名の欄はご本人で記入をお願い致します。ただし、未成年者または本人が署名できないときは、保護者または代諾者の方が記入をお願い致します。保護者または代諾者住所は患者さまと同一住所でない場合はご記入ください。"]
[]
[]
[]
[null,null,null,null,null,null,null,null,null,null,null,null,null,null,null,null,null,null,null,null,null,null,null,null,null,null,null,null,null,null,null,null,null,null,{"$f":"$AI$38","v":"作成修正年月日"},null,null,null,null,null,null,null,null,{"$f":"$AR$38","v":"2024-05-24"}]
[null,"発行年月日",null,null,null,{"$f":"TODAY()","v":"2024-05-24"},null,null,null,null,null,null,null,null,null,null,null,null,null,null,null,null,null,null,null,null,null,null,null,null,null,null,null,null,null,null,null,null,null,null,"受診者さま控え"]
[null,{"$f":"氏名２ &  \" さま\"","v":" さま"}]
[null,"同     意     書"]
[]
[null,null,null,"この同意書は、患者さまに説明された重要な医学的情報を文書として確認するために作成されています。患者さまが、十分な情報が提供されたのちに、提案された手術・手技・検査に同意するか、または留保することができることを目的としています。この同意書は、一旦同意された後でもいつでも撤回することができます。同意を撤回されても不利な扱いを受けたりすることはありません。"]
[]
[]
[]
[]
[]
[null,null,1,"状態または診断名",null,null,null,null,null,null,null,null,null,null,"アミロイドβ蛋白の蓄積によるアルツハイマー病の可能性の検討"]
[]
[null,null,2,"医療行為名",null,null,null,null,null,null,null,null,null,null,"アミロイドPET検査"]
[]
[null,null,3,"提案された手術・手技の危険性と利点："]
[null,null,null,null,"A.","私は、提案された医療行為に利点があっても、医療行為には危険を伴うことを理解しました。これらの危険には、アレルギー反応、出血、血栓、神経損傷、感染症、薬剤の副作用、失明、さらには身体機能障害や生命の危険が含まれています。"]
[]
[]
[]
[null,null,null,null,"B.","私は、提案された医療行為に関する危険性と、それ以外の危険性があることを理解しました。"]
[]
[null,null,4,"合併症、不測の状況、結果："]
[null,null,null,null,"私は医療行為には、予期しないリスクや合併症が発生する可能性があることを承知します。また、私は提案された医療行為の施行中に、不測の状況が起きた場合には、緊急の手術・手技を行う必要が生じる可能性があることを理解し、そのような緊急の場合、私はそのような手術や手技が実行されることを了解します。更に、私は、そのような緊急の手術や手技の結果には、いかなる保証もされていないことを認めます。"]
[]
[]
[]
[]
[]
[]
[null,null,5,"承認：ほかに取りうる方法",null,null,null,null,null,null,null,null,null,null,null,null,null,"（",{"$f":"$E$252","v":"認知機能、形態画像（CTまたはMRI）、脳機能画像、血液、髄液検査等による複合的診断"},null,null,null,null,null,null,null,null,null,null,null,null,null,null,null,null,null,null,null,null,null,null,null,null,null,null,null,null,null,")"]
[null,null,null,null,"提案された医療行為手順の想定される利点と危険、成功の可能性、他に取りうる方法、治療しなかった場合に予想される結果の説明を受けました。私はこの同意書の内容と、説明された内容を理解し、質問する機会を与えられ、納得し、手術・手技・検査を受けることを承認します。"]
[]
[]
[]
[]
[]
[null,null,6,"手術・手技と治療への同意："]
[null,null,null,null,"検査説明書および同意書を読み医師と相談したうえで、以下のことを認め署名します。\n私は自らの意志で上記の医療行為の施行を、担当する病院職員、その他の訓練を受けた職員に許可します。"]
[]
[]
[]
[]
[null,null,"上記の内容について説明いたしました。"]
[]
[null,null,null,"説明した日",null,null,null,null,null,{"$f":"J83","v":"2024-05-24"}]
[]
[null,null,null,"主治医師名　                   　　　　　　         ",null,null,null,null,null,{"$f":"Z12","v":0},null,null,null,null,null,null,null,null,null,null,null,null,null,null,null,null,null,null,null,null,null,null,null,null,null,null,null,"印又はサイン"]
[]
[null,null,null,"院内担当医師名(自署)"]
[]
[null,null,"このたび上記の医療行為を受けるにあたり、主治医師から医療行為の必要性とその方法、起こりうる合併症と危険性について十分な説明を受け理解しましたので、上記の医療行為を受けることを同意します。 なお、実施中に緊急の対応を行う必要が生じた場合には、適宜その対応を受けることについても了承します。"]
[]
[]
[]
[]
[null,null,null,"同意した日",null,null,null,null,null,"　　　　　　　　　　　年　　　　　　　月 　　　　　　　日　　　　　　　時　　　　　　　分"]
[]
[null,null,null,"患者さま氏名　                   　　　　　　         "]
[]
[null,null,null,"保護者または代諾者氏名",null,null,null,null,null,null,null,null,null,null,null,null,null,null,null,null,null,null,null,null,null,null,null,null,null,null,null,null,null,null,"患者さまとの続柄"]
[]
[null,null,null,"住所　                   　　　　　　   　　　　　　　　　　　　　　　　　　"]
[]
[null,null,"患者さま氏名の欄はご本人で記入をお願い致します。ただし、未成年者または本人が署名できないときは、保護者または代諾者の方が記入をお願い致します。保護者または代諾者住所は患者さまと同一住所でない場合はご記入ください。"]
[]
[]
[]
[null,null,null,null,null,null,null,null,null,null,null,null,null,null,null,null,null,null,null,null,null,null,null,null,null,null,null,null,null,null,null,null,null,null,{"$f":"$AI$38","v":"作成修正年月日"},null,null,null,null,null,null,null,null,{"$f":"$AR$38","v":"2024-05-24"}]
[null,"発行年月日",null,null,null,{"$f":"TODAY()","v":"2024-05-24"},null,null,null,null,null,null,null,null,null,null,null,null,null,null,null,null,null,null,null,null,null,null,null,null,null,null,null,null,null,null,null,null,null,null,"受診者さま控え"]
[null,{"$f":"氏名２ &  \" さま　控え\"","v":" さま　控え"}]
[null,null,null,null,null,null,null,null,null,null,"アミロイドPET　予約票"]
[]
[]
[null,"検査予約日時は",null,null,null,null,null,null,null,null,null,null,{"$f":"予約年","v":0},null,null,null,null,null,null,null,null,null,"年",null,null,null,{"$f":"予約月","v":0},null,null,null,null,"月",null,null,null,{"$f":"予約日","v":0},null,null,null,null,"日"]
[]
[null,{"$f":"IF(予約時間=\"\",\"\",予約時間)","v":""},null,"時",null,null,null,{"$f":"予約分","v":0},null,null,null,null,"分",null,null,null,"に検査薬投与を行う予約枠です。"]
[]
[null,"検査当日は",null,null,null,null,null,null,null,{"$f":"IF(予約時間=\"\",\"\",予約時間-1)","v":""},null,null,null,"時",null,null,{"$f":"予約分","v":0},null,null,null,"分",null,null,"までに当院へお越しください。"]
[]
[]
[null,null,"来院後、本館１階の③番紹介窓口にて受付後、予約時間40分前までに先端医療センター1階 S14番PET・SPECT検査室受付までお越しください。"]
[]
[]
[]
[]
[null,null,"〇予約制のため、時間に遅れないようお願い致します。時間に遅れますと、当日検査を行えない場合がございます。\n〇装置のトラブルなどで、検査が行えないことや、開始が若干遅れることもありますので、予めご了承ください。\n〇検査当日にお持ちいただくものは、 ①紹介状　②同意書　③保険証・各種医療受給者証となります。"]
[]
[]
[]
[]
[]
[]
[]
[]
[]
[]
[]
[]
[]
[null,null,"〇飲食・お薬の制限は特にありません。\n〇薬剤が高額なため、受診者様の諸事情により予約変更・キャンセルされる場合は検査日の前営業日16時までにご連絡をお願い致します。これ以降のキャンセル変更については 検査薬剤費用(19万円)を全額ご負担いただきます。 また、この検査で使用する 検査薬 は使用可能な期間（時間）が極めて短いため、 検査予定時間に遅れた場合や、体調不良により検査が受けられない場合もキャンセル扱いとなりますのでご注意下さい。\n〇検査についてのお問い合わせは、下記の検査室直通電話番号または代表電話番号までお願い致します。"]
[]
[]
[]
[]
[]
[]
[]
[]
[]
[]
[]
[]
[]
[]
[]
[]
[]
[]
[]
[]
[]
[null,null,"医療法人徳洲会　湘南鎌倉総合病院　先端医療センター　核医学検査室\n〒247-8533　鎌倉市岡本1370-1　代表電話：0467-46-1717\nTEL：0467-46-9921（検査室直通）　\n受付時間：午前8時30分から午後4時30分（日曜・祝日を除く）"]
[]
[]
[]
[]
[null,null,null,null,null,null,null,null,null,null,null,null,null,null,null,null,null,null,null,null,null,null,null,null,null,null,null,null,null,null,null,null,null,null,{"$f":"$AI$38","v":"作成修正年月日"},null,null,null,null,null,null,null,null,{"$f":"$AR$38","v":"2024-05-24"}]
[null,"発行年月日",null,null,null,{"$f":"TODAY()","v":"2024-05-24"},null,null,null,null,null,null,null,null,null,null,null,null,null,null,null,null,null,null,null,null,null,null,null,null,null,null,null,null,null,null,null,null,null,null,"受診者さま控え"]
[null,{"$f":"氏名２ &  \" さま　控え\"","v":" さま　控え"}]
[null,"アミロイドPET検査についての説明書"]
[]
[]
[null,null,1,"状態または診断名",null,null,null,null,null,null,null,null,null,"アミロイドβ蛋白の蓄積によるアルツハイマー病の可能性の検討"]
[]
[null,null,2,"医療行為名",null,null,null,null,null,null,"アミロイドPET検査"]
[null,null,null,null,"アミロイドPET検査は３大認知症（アルツハイマー型認知症、脳血管性認知症、レビー小体型認知症）の中で最も多いと言われている「アルツハイマー型認知症」を引き起こす「アミロイドβ蛋白」の蓄積を調べる検査です。この検査では、病理を画像化する「PET検査（核医学検査）」と形状を診る「CT検査」を同時に行います。"]
[]
[]
[]
[]
[]
[null,null,null,null,"利点；低侵襲に脳内のアミロイドβ蛋白の蓄積が、陽性か陰性かを判定できる。"]
[null,null,null,null,"欠点；放射性医薬品の投与およびCT撮影による被ばく"]
[]
[null,null,3,"他に取りうる方法"]
[null,null,null,null,"認知機能、形態画像（CTまたはMRI）、脳機能画像、血液、髄液検査等による複合的診断"]
[]
[null,null,4,"成功の可能性"]
[null,null,null,null,"成功率は99％以上"]
[]
[null,null,5,"起こり得る合併症とその対処法"]
[]
[null,null,null,null,null,null,null,null,null,"0.1～1%未満",null,null,null,null,null,null,null,null,null,null,null,null,null,null,null,null,null,null,null,"頻度不明"]
[null,null,null,null,null,"皮膚",null,null,null,"注射部位反応（刺激）、そう痒症",null,null,null,null,null,null,null,null,null,null,null,null,null,null,null,null,null,null,null,"注入部位発疹\n注射部位反応（出血、疼痛）、蕁麻疹"]
[]
[null,null,null,null,null,"循環器",null,null,null,"高血圧"]
[null,null,null,null,null,"消化器",null,null,null,"悪心、便秘、血尿"]
[]
[null,null,null,null,"有害反応が起きた場合には最善の処置を行います。処置等は通常の保険診療となります。"]
[]
[null,null,6,"検査しなかった場合の予想"]
[null,null,null,null,"病態の詳細な解明が困難になり、投薬・リハビリなどの介入が遅れる可能性があります。"]
[]
[null,null,7,"同意の撤回について"]
[null,null,null,null,"いったん同意された後でも、いつでも撤回することができます。"]
[null,null,null,null,"同意を撤回されても，不利な扱いを受けることはありません。"]
[]
[null,null,8,"核医学検査と検査時間"]
[null,null,null,null,"核医学検査は放射性医薬品（放射線を出す薬）を注射、吸引等で体内に取り込み、その薬が目的部位に到達するまで時間を置いてから撮像する検査です。また、薬から出ている放射線量が極微量であるため機械での収集（撮像）に時間がかかります。\nアミロイドPET検査の場合は検査薬を注射してから検査終了まで60分ほどかかります（薬によって検査時間が多少異なります。）身体的な苦痛を伴う検査ではありませんが、撮像中(20分間)は仰向けで身体を動かさずに撮影をおこないます。"]
[]
[]
[]
[]
[]
[]
[null,null,9,"検査に伴う被ばくについて"]
[null,null,null,null,"放射線を用いる検査のため、わずかですが放射線による被ばくがあります。そのため、医師は診断上必要とした場合のみ検査を行い、検査における放射線被ばく量を必要最小限に留めます。\n体内に入った「放射線を出す薬」は時間を追う毎に放射線を出す能力が減少します。検査薬自体も尿などから体外に排出されるとともに、およそ 2 時間経過する毎にその放射能量は半分に低下しますので、検査当日のうちに体内に残留する放射能量は低値になり、検査翌日にはほぼゼロになります。また、放射線被ばくが体に与える影響は確率的影響と言われている「がんになるリスク」ですが、この検査による放射線被ばくに関する「がんになるリスク」は検出困難なほど低いです。\n実効線量はおおよそ8mSv/回です。"]
[]
[]
[]
[]
[]
[]
[]
[null,null,null,null,null,null,null,null,null,null,null,null,null,null,null,null,null,null,null,null,null,null,null,null,null,null,null,null,null,null,null,null,null,null,{"$f":"$AI$38","v":"作成修正年月日"},null,null,null,null,null,null,null,null,{"$f":"$AR$38","v":"2024-05-24"}]
[null,"発行年月日",null,null,null,{"$f":"TODAY()","v":"2024-05-24"},null,null,null,null,null,null,null,null,null,null,null,null,null,null,null,null,null,null,null,null,null,null,null,null,null,null,null,null,null,null,null,null,null,null,"受診者さま控え"]
[null,{"$f":"氏名２ &  \" さま　控え\"","v":" さま　控え"}]
[]
[null,null,10,"検査薬について"]
[null,null,null,null,"フロルベタピル（アミヴィッド静注）という検査薬を使用します。アミロイドPET検査薬として国内外で広く用いられている薬剤ですが、稀な副作用として本剤との関与が否定できないアレルギー反応（顔面紅潮など）が報告されています。投与後は、待機室内で約４0分間お過ごしいただき、万が一、アレルギー反応が出現した場合は、症状に応じて対応させていただきます。"]
[]
[]
[]
[]
[null,null,11,"検査の受診確認とキャンセルについて"]
[null,null,null,null,"受診者様の諸事情により予約変更・キャンセルされる場合は検査日の前営業日16時までにご連絡をお願い致します。これ以降のキャンセル変更については 検査薬剤費用を全額ご負担いただきます。 また、この検査で使用する 検査薬 は使用可能な期間（時間）が極めて短いため、 検査予定時間に遅れた場合や、体調不良により検査が受けられない場合もキャンセル扱いとなりますのでご注意下さい。"]
[]
[]
[]
[]
[]
[]
[null,null,null,null,"この検査について予約の変更、キャンセルは下記までご連絡くださいませ。"]
[]
[null,null,null,null,"医療法人徳洲会湘南鎌倉総合病院\nPET/SPECT検査室\n住所：〒247-8533 神奈川県鎌倉市岡本1370番1\n直通電話：0467-46-9921　（日曜祝日を除く　8：30～16:30）"]
[]
[]
[]
[]
[]
[]
[null,null,12,"具体的な希望、質問の自由"]
[null,null,null,null,"この検査について、具体的な希望がある場合や質問がある場合は、担当医や検査室のスタッフに遠慮なく仰って下さい。"]
[]
[]
[null,null,13,"院内承認について"]
[null,null,null,null,"当院では、院内の高難度新規医療技術評価専門部会の審査承認を得た上で自由診療検査として実施しております。"]
[]
[]
[]
[null,null,14,"文書による同意とその撤回"]
[null,null,null,null,"今回の検査は、患者さまの同意を文書で得ることが前提になっています。本検査を受けるかどうかは、患者さまご自身で判断いただきますようお願い致します。もちろん、ご家族や友人、他の医師と相談するなどしてお決め下さっても結構です。患者さまが書面により同意した後も、いつでも自由意思に基づいて同意を撤回することができます。 同意を撤回されたい場合は、遠慮なく担当医にお申し出ください。"]
[]
[]
[]
[]
[]
[null,null,15,"検査費用"]
[null,null,null,null,"おおよその検査費用は自費診療で24万8千6百円、保険負担分３割の方6万8千円、保険負担分2割の方4万6千円、保険負担分1割の方2万3千円を頂いております。\t"]
[]
[]
[]
[null,null,16,"検査室連絡先"]
[null,null,null,"この検査についてわからないことがあれば、担当医師や検査室スタッフなどにお尋ね下さい。"]
[]
[]
[]
[]
[]
[]
[]
[]
[]
[null,null,null,null,null,null,null,null,null,null,null,null,null,null,null,null,null,null,null,null,null,null,null,null,null,null,null,null,null,null,null,null,null,null,{"$f":"$AI$38","v":"作成修正年月日"},null,null,null,null,null,null,null,null,{"$f":"$AR$38","v":"2024-05-24"}]
[null,"発行年月日",null,null,null,{"$f":"TODAY()","v":"2024-05-24"},null,null,null,null,null,null,null,null,null,null,null,null,null,null,null,null,null,null,null,null,null,null,null,null,null,null,null,null,null,null,null,null,null,null,"医療機関提出用"]
[null,{"$f":"氏名２ &  \" さま\"","v":" さま"}]
[]
[null,"医学研究のための診療情報利用同意書"]
[]
[]
[null,null,null,"湘南鎌倉総合病院は、予防医学から救急診療、専門的診療まで幅広い診療を行っています。その一方、先進的な診断法や治療法、未解明な病態の解明に関する医学研究（学会発表や論文発表など）などの学術活動も行っています。\n\nそのため、診療情報（カルテの記録、X線やCT MRIなどの診断画像、病変部写真などの画像、手術中や侵襲的治療中のビデオ動画、検査結果など）を医学研究のために使用することに、ご協力をお願いします。\n\n診療情報を利用するときは匿名化し、個人が特定されないように国の指針に従って厳重に管理します。　\n　\nご協力されるかどうかはお客さまの自由意志であり、ご協力を頂けなくても診療上の不利益を受けることはありません。また、いったん協力に同意された後でも、同意を撤回することができます。（後日撤回される場合は、総合受付へお申し出ていただき、この文書の撤回しますに○を付けて、提出をお願いします。）\n　\n湘南鎌倉総合病院\n病院長　小林　修三"]
[]
[]
[]
[]
[]
[]
[]
[]
[]
[]
[]
[]
[]
[]
[]
[]
[]
[]
[]
[]
[]
[null,null,null,"私は、湘南鎌倉総合病院での私の診療情報が、個人が特定されず、不利益を受けない形で将来の医学医療の発展のための医学研究（学会発表や論文発表など）に利用されることに\n\n　　１　同意します。\n\n　　２　同意しません。\n\n　　３　一旦同意しましたが、撤回します。\n　　\n　　　（いずれかの番号を◯で囲んでください。）\n"]
[]
[]
[]
[]
[]
[]
[]
[]
[]
[]
[null,null,null,"同意した日",null,null,null,null,null,"　　　　　　　　　　　年　　　　　　　月 　　　　　　　日　　　　　　　時　　　　　　　分"]
[]
[null,null,null,"お客さま氏名　                   　　　　　　         "]
[]
[null,null,null,"保護者または代諾者氏名",null,null,null,null,null,null,null,null,null,null,null,null,null,null,null,null,null,null,null,null,null,null,null,null,null,null,null,null,null,null,"お客さまとの続柄"]
[]
[null,null,null,"住所　                   　　　　　　   　　　　　　　　　　　　　　　　　　"]
[]
[null,null,"お客さま氏名の欄はご本人で記入をお願い致します。ただし、未成年者または本人が署名できないときは、保護者または代諾者の方が記入をお願い致します。保護者または代諾者住所はお客さまと同一住所でない場合はご記入ください。"]
[]
[]
[]
[]
[]
[]
[]
[]
[]
[null,null,null,null,null,null,null,null,null,null,null,null,null,null,null,null,null,null,null,null,null,null,null,null,null,null,null,null,null,null,null,null,null,null,{"$f":"$AI$38","v":"作成修正年月日"},null,null,null,null,null,null,null,null,{"$f":"$AR$38","v":"2024-05-24"}]

{"sheet":"案内","index":1,"n_rows":113,"n_cols":1,"rows_kept":113,"cut":false,"hidden":true,"merged":[[0,0,1,11],[107,0,111,11],[112,0,112,11]]}
["◆お車でお越しの方へ（アクセスマップ）"]
[]
[]
[]
[]
[]
[]
[]
[]
[]
[]
[]
[]
[]
[]
[]
[]
[]
[]
[]
[]
[]
[]
[]
[]
[]
[]
[]
[]
[]
[]
[]
[]
[]
[]
[]
[]
[]
[]
[]
[]
[]
[]
[]
[]
[]
[]
[]
[]
[]
[]
[]
[]
[]
[]
[]
[]
[]
[]
[]
[]
[]
[]
[]
[]
[]
[]
[]
[]
[]
[]
[]
[]
[]
[]
[]
[]
[]
[]
[]
[]
[]
[]
[]
[]
[]
[]
[]
[]
[]
[]
[]
[]
[]
[]
[]
[]
[]
[]
[]
[]
[]
[]
[]
[]
[]
[]
["予約時間への遅延について必ず下記までご連絡いただきますようお願い申し上げます。"]
[]
[]
[]
[]
["湘南鎌倉総合病院　PET/SPECT検査室直通：0467-46-9921"]